bitfinex-derivatives/quotes_ETHF0:USTF0_20250624
["timestamp","ask_amount","ask_price","bid_price","bid_amount"]
[1750762653503,2.02492953,2414.7,2414.6,2.16952]
[1750762654415,2.02492953,2414.7,2414.6,1.3418]
[1750762654804,2.02492953,2414.7,2414.6,2.16955]
[1750762655813,2.02492953,2414.7,2414.6,1.3418]
[1750762656210,2.02492953,2414.7,2414.6,2.16955]
[1750762657014,2.02492953,2414.7,2414.6,1.3418]
[1750762657912,2.02492953,2414.7,2414.6,2.16955]
[1750762659117,0.82775,2414.6,2414.5,6.656]
[1750762659316,2.74422953,2414.6,2414.5,6.656]
[1750762660008,3.98592953,2414.6,2414.4,6.656]
[1750762660209,2.02496953,2414.5,2414.4,6.656]
[1750762660817,2.70846953,2414.5,2414.4,6.656]
[1750762661119,0.82786,2414.3,2414.2,3.27201508]
[1750762661314,0.82786,2414.3,2414.2,4.71521508]
[1750762661617,2.02503953,2414.3,2414.2,4.71521508]
[1750762662514,2.02503953,2414.3,2414.2,5.39061508]
[1750762663217,0.82786,2414.3,2414.2,5.39061508]
[1750762664120,0.82783,2414.5,2414.4,0.82781]
[1750762664321,0.82783,2414.5,2414.4,9.07915508]
[1750762664614,2.02670303,2414.5,2414.4,9.07915508]
[1750762664821,2.02670303,2414.5,2414.4,11.16165508]
[1750762665519,2.02670303,2414.5,2414.4,8.7175]
[1750762668421,2.02670303,2414.5,2414.4,9.54532]
[1750762669016,2.02670303,2414.5,2414.4,8.7175]
[1750762670121,2.02670303,2414.5,2414.4,9.54532]
[1750762670822,2.02670303,2414.5,2414.4,11.98947508]
[1750762672015,2.02670303,2414.5,2414.4,11.16165508]
[1750762672420,2.02670303,2414.5,2414.4,9.54532]
[1750762673524,2.02670303,2414.5,2414.4,8.7175]
[1750762676522,2.02670303,2414.5,2414.3,6.635]
[1750762676729,0.82796,2414.1,2414.0,0.82792]
[1750762677028,0.82796,2414.1,2414.0,36.72677508]
[1750762677925,0.82792,2414.2,2414.1,0.82789]
[1750762678129,0.82792,2414.2,2414.1,5.34334508]
[1750762680632,0.82792,2414.2,2414.1,4.51545508]
[1750762680833,2.02746869,2414.2,2414.1,3.82585508]
[1750762681833,0.82796,2414.0,2413.9,3.81275508]
[1750762682024,0.82796,2414.0,2413.9,33.4356]
[1750762682330,0.82796,2414.0,2413.9,32.7404]
[1750762682527,0.82799,2413.9,2413.8,3.2078]
[1750762682723,0.82816,2413.5,2413.2,3.52211427]
[1750762682923,2.07025,2413.6,2413.2,6.37805508]
[1750762683232,1.54945,2413.5,2413.4,0.82816]
[1750762683434,0.7213,2413.5,2413.4,3.27231508]
[1750762683628,0.82812,2413.6,2413.5,0.82813]
[1750762683826,0.82812,2413.6,2413.5,2.25223]
[1750762684025,0.82812,2413.6,2413.5,2.92393]
[1750762684232,0.82812,2413.6,2413.5,2.0958]
[1750762684533,0.82812,2413.6,2413.5,1.4241]
[1750762687932,0.82812,2413.6,2413.5,2.25223]
[1750762689937,0.82812,2413.6,2413.5,1.4241]
[1750762690835,0.82812,2413.6,2413.5,2.25223]
[1750762691037,0.82812,2413.6,2413.5,1.4241]
[1750762691239,0.82812,2413.6,2413.5,0.82813]
[1750762694243,0.82813,2413.5,2413.4,9.90829508]
[1750762695348,0.82813,2413.5,2413.4,7.46414]
[1750762697038,0.82812,2413.6,2413.5,0.82811]
[1750762697239,0.82812,2413.6,2413.5,1.4384]
[1750762698147,0.82812,2413.6,2413.5,2.26653]
[1750762698748,0.82812,2413.6,2413.5,1.4384]
[1750762699448,0.82812,2413.6,2413.5,2.26653]
[1750762700547,0.82813,2413.5,2413.4,8.13335]
[1750762700848,0.7029,2413.5,2413.4,8.13335]
[1750762701537,0.82812,2413.6,2413.5,0.82813]
[1750762701741,0.82812,2413.6,2413.5,2.22933]
[1750762706251,0.82812,2413.6,2413.5,1.4012]
[1750762706550,0.82812,2413.6,2413.5,0.82813]
[1750762707049,0.82813,2413.5,2413.4,7.46414]
[1750762707251,1.51123,2413.5,2413.4,7.46414]
[1750762709151,0.6831,2413.5,2413.4,7.46414]
[1750762709351,0.6831,2413.5,2413.4,9.90829508]
[1750762709553,0.6831,2413.5,2413.4,11.33159508]
[1750762710551,1.51123,2413.5,2413.4,11.33159508]
[1750762712351,1.88082785,2413.5,2413.4,11.33159508]
[1750762712554,2.70895785,2413.5,2413.4,11.33159508]
[1750762714153,2.70895785,2413.5,2413.2,3.9339]
[1750762714154,0.8282,2413.3,2413.2,3.9339]
[1750762714349,2.02592785,2413.3,2413.2,1.55433]
[1750762714653,2.02592785,2413.3,2413.2,7.3441]
[1750762714849,0.8283,2413.0,2412.9,4.03611]
[1750762715056,2.02601785,2413.1,2412.9,9.8258]
[1750762715255,1.19772785,2413.0,2412.9,10.65414]
[1750762715458,0.8283,2413.0,2412.9,12.03934]
[1750762715954,0.7122,2413.2,2413.1,0.82827]
[1750762715955,1.54047,2413.2,2413.1,0.82827]
[1750762716148,1.54047,2413.2,2413.1,3.27242508]
[1750762716149,2.73782183,2413.2,2413.1,3.27242508]
[1750762716752,2.73782183,2413.2,2413.1,4.65762508]
[1750762720059,2.73782183,2413.2,2413.1,1.3852]
[1750762720367,2.73782183,2413.2,2413.1,2.21347]
[1750762720552,0.82827,2413.1,2413.0,3.93532508]
[1750762720752,0.82827,2413.1,2413.0,5.34472508]
[1750762724157,1.54046,2413.2,2413.1,0.82827]
[1750762724456,4.03593,2413.5,2413.4,0.0637515]
[1750762724662,5.23201742,2413.5,2413.4,3.33606658]
[1750762725263,5.23201742,2413.5,2413.4,2.50790658]
[1750762725464,5.23201742,2413.5,2413.4,2.44415508]
[1750762725763,5.23201742,2413.5,2413.4,4.64341508]
[1750762726660,5.23201742,2413.5,2413.4,3.81525508]
[1750762727065,5.23201742,2413.5,2413.4,4.48665508]
[1750762727758,1.19608742,2413.5,2413.4,5.31481508]
[1750762727961,0.8281,2413.6,2413.5,0.82811]
[1750762728167,2.02402643,2413.6,2413.5,2.22191]
[1750762729261,2.02402643,2413.6,2413.5,1.3938]
[1750762729756,2.02402643,2413.6,2413.5,7.9928]
[1750762729952,2.02402643,2413.6,2413.5,8.82093]
[1750762730667,2.02402643,2413.6,2413.5,7.9928]
[1750762731066,2.02402643,2413.6,2413.5,8.82093]
[1750762731267,2.02402643,2413.6,2413.5,7.9928]
[1750762731862,0.82813,2413.5,2413.4,0.6714]
[1750762732161,0.8282,2413.3,2413.2,8.599]
[1750762732570,2.02330442,2413.3,2413.2,8.599]
[1750762733072,2.02330442,2413.3,2413.2,9.42723]
[1750762734167,2.02330442,2413.3,2413.2,11.87138508]
[1750762734372,1.19510442,2413.3,2413.2,13.24948508]
[1750762734568,1.48779,2413.4,2413.3,0.8282]
[1750762734767,2.68265913,2413.4,2413.3,0.8282]
[1750762736084,0.6596,2413.4,2413.3,2.2063]
[1750762736285,0.6596,2413.4,2413.3,2.8914]
[1750762736677,1.48776,2413.4,2413.3,2.8914]
[1750762739586,2.68336508,2413.4,2413.3,2.8914]
[1750762742184,1.85520508,2413.4,2413.3,2.8914]
[1750762742380,2.68336508,2413.4,2413.3,2.8914]
[1750762742689,1.19560508,2413.4,2413.3,2.8914]
[1750762743590,0.82816,2413.5,2413.4,0.82816]
[1750762743891,2.02394392,2413.5,2413.4,4.65411508]
[1750762746693,2.02394392,2413.5,2413.4,3.82595508]
[1750762746895,2.02394392,2413.5,2413.4,4.65411508]
[1750762747284,0.82816,2413.4,2413.3,0.6851]
[1750762747490,2.02394392,2413.4,2413.3,8.1123]
[1750762748189,2.02394392,2413.4,2413.3,9.5271]
[1750762752195,1.19578392,2413.4,2413.3,9.5271]
[1750762754496,0.82804,2413.8,2413.7,0.82803]
[1750762754801,0.82804,2413.8,2413.7,9.85218508]
[1750762755098,2.02427354,2413.8,2413.7,9.85218508]
[1750762755299,1.19623354,2413.8,2413.7,9.85218508]
[1750762755499,3.69494,2414.1,2414.0,0.82796]
[1750762755695,2.74136864,2414.1,2414.0,3.27211508]
[1750762757394,1.91342864,2414.1,2414.0,9.85211508]
[1750762757801,1.19562864,2414.1,2414.0,9.85211508]
[1750762758601,4.03568,2414.3,2414.2,0.82789]
[1750762758805,5.22972037,2414.3,2414.2,0.82789]
[1750762759209,0.82789,2414.2,2414.1,2.23]
[1750762759408,1.19404037,2414.2,2414.1,2.23]
[1750762760809,2.02193037,2414.2,2414.1,2.23]
[1750762762507,1.19404037,2414.2,2414.1,2.23]
[1750762762702,2.02193037,2414.2,2414.1,2.23]
[1750762763203,2.02193037,2414.2,2414.1,0.8279]
[1750762763907,2.02193037,2414.2,2414.1,7.4069]
[1750762764109,2.02193037,2414.2,2414.1,6.579]
[1750762764402,2.02193037,2414.2,2414.1,7.40692]
[1750762766012,2.02193037,2414.2,2414.1,7.4677939]
[1750762766803,2.02193037,2414.2,2414.1,0.8887939]
[1750762771206,1.19404037,2414.2,2414.1,0.8887939]
[1750762771610,1.19404037,2414.2,2414.1,2.2585939]
[1750762772311,1.19404037,2414.2,2414.1,8.8375939]
[1750762773516,1.50784,2414.4,2414.1,10.0794639]
[1750762773716,1.19429991,2414.3,2414.2,5.36394508]
[1750762773910,1.19429991,2414.3,2414.2,3.96174508]
[1750762774106,1.19429991,2414.3,2414.2,4.02261898]
[1750762775215,4.03558,2414.6,2414.5,0.82779]
[1750762775520,4.40234063,2414.6,2414.5,0.82779]
[1750762775720,5.23009063,2414.6,2414.5,0.82779]
[1750762776422,4.40234063,2414.6,2414.5,0.8886639]
[1750762776619,3.2078,2414.6,2414.5,0.8886639]
[1750762777510,0.666,2414.7,2414.6,0.82775]
[1750762777706,1.86024635,2414.7,2414.6,0.82775]
[1750762778316,1.86024635,2414.7,2414.6,0.8886239]
[1750762779109,0.666,2414.7,2414.6,0.8886239]
[1750762780421,1.86002288,2414.7,2414.6,0.8886239]
[1750762780822,1.86002288,2414.7,2414.6,3.33277898]
[1750762781125,0.666,2414.7,2414.6,3.33277898]
[1750762781323,2.68763904,2414.7,2414.6,3.33277898]
[1750762781514,1.49372,2414.7,2414.6,3.33277898]
[1750762782519,1.86008109,2414.7,2414.6,3.33277898]
[1750762782917,2.68780109,2414.7,2414.6,3.33277898]
[1750762783112,2.68780109,2414.7,2414.6,9.91077898]
[1750762783509,0.8277,2414.8,2414.7,0.82772]
[1750762783719,2.02199421,2414.8,2414.7,0.82772]
[1750762784225,1.19429421,2414.8,2414.7,0.82772]
[1750762784423,1.19429421,2414.8,2414.7,0.8885939]
[1750762784926,2.02197421,2414.8,2414.7,0.8885939]
[1750762785528,1.19429421,2414.8,2414.7,0.8885939]
[1750762786232,2.02197421,2414.8,2414.7,0.8885939]
[1750762787018,2.02197421,2414.8,2414.7,0.0608739]
[1750762787525,2.02197421,2414.8,2414.7,0.8885939]
[1750762788431,2.02197421,2414.8,2414.7,6.6218739]
[1750762788927,2.02197421,2414.8,2414.7,0.0608739]
[1750762789526,2.02197421,2414.8,2414.7,0.8885939]
[1750762790029,2.02197421,2414.8,2414.7,0.0608739]
[1750762790527,2.02197421,2414.8,2414.7,0.8885939]
[1750762793530,2.02197421,2414.8,2414.7,0.0608739]
[1750762794029,2.022285,2414.8,2414.7,0.0608739]
[1750762795726,2.022285,2414.8,2414.7,0.8885939]
[1750762798125,2.022285,2414.8,2414.7,0.0608739]
[1750762798325,2.022285,2414.8,2414.7,0.8885939]
[1750762799034,2.022285,2414.8,2414.7,0.0608739]
[1750762799229,2.022285,2414.8,2414.7,0.8885939]
[1750762800538,2.022285,2414.8,2414.7,0.0608739]
[1750762800728,2.700785,2414.8,2414.7,0.0608739]
[1750762800928,0.82779,2414.5,2414.4,6.56]
[1750762801132,2.06947,2414.5,2413.8,3.2078]
[1750762801436,0.82788,2414.3,2414.2,0.82786]
[1750762801623,2.022485,2414.3,2414.2,0.82786]
[1750762801825,0.82789,2414.2,2414.1,2.18381]
[1750762802033,0.82792,2414.1,2414.0,0.82793]
[1750762802230,0.82792,2414.1,2414.0,7.38793]
[1750762802430,1.9031733,2414.1,2414.0,7.38793]
[1750762802630,0.82789,2414.3,2414.2,0.82786]
[1750762802828,0.82789,2414.2,2414.1,3.27205508]
[1750762803029,2.02273157,2414.2,2414.1,3.27205508]
[1750762803337,2.02273157,2414.2,2414.1,0.8279]
[1750762804032,1.19484157,2414.2,2414.1,1.5082]
[1750762804432,0.82789,2414.3,2414.2,0.82789]
[1750762804634,2.02279111,2414.3,2414.2,3.27204508]
[1750762805939,2.02279111,2414.3,2414.2,2.44415508]
[1750762806141,2.02279111,2414.3,2414.2,3.27204508]
[1750762806842,1.19490111,2414.3,2414.2,3.27204508]
[1750762807032,1.19490111,2414.3,2414.2,3.92784508]
[1750762807436,1.53623,2414.4,2414.3,0.82786]
[1750762807740,1.53623,2414.4,2414.3,7.38886]
[1750762807741,2.73110222,2414.4,2414.3,7.38886]
[1750762807936,2.73110222,2414.4,2414.3,6.561]
[1750762808743,2.73110222,2414.4,2414.3,7.38886]
[1750762808942,2.73110222,2414.4,2414.3,6.561]
[1750762809144,2.73110222,2414.4,2414.3,7.38886]
[1750762810929,2.73110222,2414.4,2414.3,0.82786]
[1750762811143,2.73110222,2414.4,2414.3,7.38886]
[1750762811839,2.73110222,2414.4,2414.3,0.82786]
[1750762812146,2.73110222,2414.4,2414.3,7.38886]
[1750762813439,2.73110222,2414.4,2414.3,8.72586]
[1750762813840,1.90327222,2414.4,2414.3,8.72586]
[1750762814038,1.19487222,2414.4,2414.3,8.72586]
[1750762814734,0.7067,2414.6,2414.5,0.82779]
[1750762814941,0.7067,2414.6,2414.5,3.27194508]
[1750762815145,0.82774,2414.7,2414.6,0.82775]
[1750762815347,2.02291304,2414.7,2414.6,8.72575]
[1750762815549,2.02291304,2414.7,2414.6,7.898]
[1750762815948,2.02291304,2414.7,2414.6,8.72575]
[1750762816449,2.02291304,2414.7,2414.6,2.16475]
[1750762816749,2.02291304,2414.7,2414.6,8.71175]
[1750762818554,2.02291304,2414.7,2414.6,2.16475]
[1750762818853,2.02291304,2414.7,2414.6,8.71175]
[1750762819747,1.13429914,2414.7,2414.6,8.71175]
[1750762819949,0.82766,2414.9,2414.8,0.82765]
[1750762820149,0.82764,2415.0,2414.9,0.82763]
[1750762820349,0.82768,2414.9,2414.8,0.82766]
[1750762820551,0.82768,2414.9,2414.8,7.37466]
[1750762821438,0.82764,2415.0,2414.9,0.82762]
[1750762822350,0.82764,2415.0,2414.8,6.547]
[1750762822351,0.82765,2414.9,2414.8,7.37465]
[1750762822855,0.82778,2414.6,2414.5,0.82774]
[1750762823053,0.82778,2414.6,2414.5,7.37374]
[1750762823951,0.82782,2414.5,2414.4,0.82778]
[1750762824147,0.82782,2414.5,2414.4,7.37378]
[1750762824347,0.82777,2414.6,2414.5,0.82774]
[1750762825860,0.82774,2414.7,2414.6,0.82772]
[1750762826055,0.7117,2414.8,2414.6,0.0637515]
[1750762826256,0.7117,2414.8,2414.7,8.70542]
[1750762826456,1.53938,2414.8,2414.7,10.06952]
[1750762826759,0.7117,2414.8,2414.7,10.06952]
[1750762826956,2.867,2415.0,2414.9,0.82765]
[1750762827150,2.867,2415.0,2414.9,3.27180508]
[1750762827949,2.867,2415.0,2414.9,6.47960508]
[1750762829061,0.7216,2415.4,2415.3,0.82751]
[1750762829356,0.7216,2415.4,2415.3,9.81766508]
[1750762829558,0.7216,2415.4,2415.3,7.37351]
[1750762830356,0.7216,2415.4,2415.3,8.70271]
[1750762830956,0.7216,2415.4,2415.3,11.14686508]
[1750762831957,0.7216,2415.4,2415.3,8.70271]
[1750762833455,3.2078,2415.8,2415.6,0.82738]
[1750762833665,2.02211201,2415.7,2415.6,0.82741]
[1750762833859,4.74415,2415.8,2415.7,0.82738]
[1750762834053,5.1116249,2415.8,2415.6,3.27153508]
[1750762834259,3.9168,2415.8,2415.7,0.82738]
[1750762834456,4.74416,2415.8,2415.7,0.82738]
[1750762834655,0.82738,2415.7,2415.6,4.68153508]
[1750762835363,0.82738,2415.7,2415.6,11.22653508]
[1750762835763,0.82738,2415.7,2415.6,11.22656508]
[1750762835956,0.82738,2415.7,2415.6,8.78241]
[1750762836257,2.06853,2415.6,2415.2,3.2078]
[1750762836461,0.82748,2415.4,2415.3,6.545]
[1750762836669,0.82751,2415.3,2415.2,3.2078]
[1750762836855,1.50471,2415.3,2415.2,3.2078]
[1750762837057,0.82762,2415.0,2414.9,4.5177]
[1750762837264,0.82762,2415.0,2414.9,9.7528]
[1750762837464,0.82762,2415.0,2414.9,3.2078]
[1750762837668,0.82762,2415.0,2414.9,4.03545]
[1750762837871,0.82762,2415.0,2414.9,3.2078]
[1750762838064,0.82762,2415.0,2414.9,4.03545]
[1750762838469,0.82762,2415.0,2414.9,0.82765]
[1750762840165,0.82767,2414.9,2414.8,0.82766]
[1750762841071,0.82764,2415.0,2414.9,0.82763]
[1750762841569,2.74603,2415.3,2415.0,0.8276]
[1750762841766,0.82757,2415.2,2415.1,0.82757]
[1750762842373,0.82757,2415.2,2415.1,2.26957]
[1750762843772,0.82757,2415.2,2415.1,2.95467]
[1750762845269,8.82519,2415.5,2415.1,2.95467]
[1750762845270,3.2078,2415.5,2415.1,4.19603]
[1750762845471,2.02309845,2415.4,2415.3,3.27166508]
[1750762845674,0.82751,2415.4,2415.3,11.24186508]
[1750762846472,0.82751,2415.4,2415.3,8.79771]
[1750762846673,2.02326324,2415.4,2415.3,8.79771]
[1750762847172,0.82762,2415.0,2414.9,4.03544]
[1750762847372,0.82762,2415.0,2414.9,7.36064]
[1750762848069,0.82762,2415.0,2414.9,6.533]
[1750762848269,0.82762,2415.0,2414.9,7.36063]
[1750762848470,0.82762,2415.0,2414.9,6.533]
[1750762848672,2.06896,2415.1,2414.7,2.20149]
[1750762848972,0.82768,2414.8,2414.7,7.9068]
[1750762849472,0.82768,2414.9,2414.7,7.9068]
[1750762849681,0.82763,2415.0,2414.9,0.82765]
[1750762850075,0.82761,2415.1,2415.0,0.8276]
[1750762850378,3.8907,2415.2,2414.9,1.4359]
[1750762850379,0.82762,2415.0,2414.9,1.4359]
[1750762850679,0.82762,2415.0,2414.9,8.79655]
[1750762850874,0.82762,2415.0,2414.9,7.9689]
[1750762852778,0.82762,2415.0,2414.9,1.4359]
[1750762852970,0.82762,2415.0,2414.9,7.9689]
[1750762853169,0.82762,2415.0,2414.9,1.4359]
[1750762853374,0.82762,2415.0,2414.9,7.9689]
[1750762853674,0.82762,2415.0,2414.9,8.79655]
[1750762853969,0.82762,2415.0,2414.9,2.26355]
[1750762854175,2.867,2415.3,2414.9,13.24583]
[1750762854367,3.69454,2415.3,2415.2,0.82755]
[1750762854567,2.867,2415.3,2415.2,7.36055]
[1750762854768,2.867,2415.3,2415.2,13.27835]
[1750762855170,2.867,2415.3,2415.2,18.27835]
[1750762858276,2.867,2415.3,2415.2,44.64635]
[1750762858478,2.867,2415.3,2415.2,39.64635]
[1750762858672,2.867,2415.3,2415.2,7.84535]
[1750762859079,2.867,2415.3,2415.2,39.64535]
[1750762859275,2.867,2415.3,2415.2,44.64535]
[1750762859478,0.82736,2415.8,2415.7,0.82738]
[1750762859675,2.02616359,2415.8,2415.7,9.80353508]
[1750762861285,2.02616359,2415.8,2415.7,8.97615508]
[1750762861583,2.02616359,2415.8,2415.7,9.80353508]
[1750762862381,2.02616359,2415.8,2415.7,8.97615508]
[1750762862583,1.19880359,2415.8,2415.7,9.80353508]
[1750762863079,0.6836,2415.9,2415.8,0.82734]
[1750762863280,0.82734,2415.8,2415.7,11.82530508]
[1750762863679,1.51093,2415.9,2415.8,0.82734]
[1750762863880,2.70860762,2415.9,2415.8,0.82734]
[1750762864379,0.82734,2415.8,2415.7,11.82530508]
[1750762864581,2.02501762,2415.8,2415.7,11.82530508]
[1750762865183,1.19767762,2415.8,2415.7,11.82530508]
[1750762865381,1.51093,2415.9,2415.8,0.82734]
[1750762865582,2.708127,2415.9,2415.8,0.82734]
[1750762865882,1.880797,2415.9,2415.8,0.82734]
[1750762866089,1.880797,2415.9,2415.8,2.25784]
[1750762866386,3.69425,2416.1,2416.0,0.82727]
[1750762866577,5.6150093,2416.1,2416.0,0.82727]
[1750762866778,4.7877593,2416.1,2416.0,7.35927]
[1750762867185,0.82719,2416.3,2416.2,0.82718]
[1750762867379,0.82719,2416.3,2416.2,3.27133508]
[1750762867581,2.02401442,2416.3,2416.2,3.27133508]
[1750762867787,0.82714,2416.4,2416.3,0.82717]
[1750762867992,1.19690143,2416.4,2416.3,7.35817]
[1750762868185,1.19690143,2416.4,2416.3,8.70547]
[1750762868383,0.82711,2416.5,2416.4,0.82714]
[1750762868584,2.02359215,2416.5,2416.4,0.82714]
[1750762869287,1.19648215,2416.5,2415.8,3.2078]
[1750762869484,0.82731,2415.9,2415.8,0.82732]
[1750762869680,0.82731,2415.9,2415.8,7.35832]
[1750762870686,0.82731,2415.9,2415.8,0.82732]
[1750762870889,0.8273,2416.0,2415.9,0.82727]
[1750762871290,0.6805,2416.1,2416.0,0.82727]
[1750762871486,0.6805,2416.1,2416.0,3.27142508]
[1750762872183,0.6805,2416.1,2416.0,4.65292508]
[1750762872890,3.2078,2416.5,2416.1,2.06809]
[1750762873096,0.82709,2416.6,2416.5,0.8271]
[1750762873296,1.19532509,2416.6,2416.5,7.3581]
[1750762874491,2.02239509,2416.6,2416.5,7.3581]
[1750762875291,2.02239509,2416.6,2416.3,4.48615508]
[1750762875503,0.82717,2416.3,2416.2,0.7135]
[1750762875701,0.82717,2416.3,2416.2,7.2445]
[1750762876090,0.82717,2416.3,2416.2,8.07171]
[1750762876397,0.82712,2416.5,2416.4,0.82711]
[1750762876696,0.82709,2416.6,2416.5,0.82708]
[1750762876889,0.82709,2416.6,2416.5,7.35008]
[1750762877090,0.82709,2416.6,2416.5,6.523]
[1750762877599,2.0216865,2416.6,2416.5,6.523]
[1750762877791,2.02169205,2416.6,2416.5,7.3501]
[1750762877992,0.82709,2416.6,2416.5,7.3501]
[1750762879101,0.82709,2416.6,2416.5,7.35007]
[1750762879102,0.82707,2416.6,2416.5,7.35007]
[1750762879503,4.37616,2416.7,2416.6,0.82707]
[1750762879691,5.57044213,2416.7,2416.6,0.82707]
[1750762880298,5.57044213,2416.7,2416.6,3.27122508]
[1750762881092,4.37616,2416.7,2416.6,3.27122508]
[1750762881296,5.57078107,2416.7,2416.6,3.27122508]
[1750762881489,1.19462107,2416.7,2416.6,3.27122508]
[1750762881688,1.48663,2416.7,2416.6,4.68512508]
[1750762882689,0.6596,2416.7,2416.3,3.2078]
[1750762882997,0.0637515,2416.6,2416.5,0.8271]
[1750762883399,0.8908215,2416.6,2416.5,1.4441]
[1750762883997,0.82707,2416.6,2416.5,2.2712]
[1750762885598,0.82707,2416.6,2416.5,1.4441]
[1750762886396,0.8271,2416.5,2416.4,9.79326508]
[1750762887902,0.8271,2416.5,2416.4,11.15786508]
[1750762888303,0.8271,2416.5,2416.4,10.33075508]
[1750762888506,0.8271,2416.5,2416.4,3.80875508]
[1750762888703,0.8271,2416.5,2416.4,10.33075508]
[1750762888897,0.8271,2416.5,2416.4,11.15789508]
[1750762889807,0.8271,2416.5,2416.4,10.33075508]
[1750762890801,0.82717,2416.3,2416.2,1.54071]
[1750762891004,0.82717,2416.3,2416.2,10.50686508]
[1750762891204,0.82717,2416.3,2416.2,11.84196508]
[1750762892906,0.82717,2416.3,2416.2,11.01475508]
[1750762893499,0.82717,2416.3,2416.2,11.84196508]
[1750762894708,0.82717,2416.3,2416.2,5.31996508]
[1750762894908,0.82717,2416.3,2416.2,11.84196508]
[1750762895110,0.82717,2416.3,2416.2,9.39781]
[1750762895307,2.02666735,2416.3,2416.2,9.39781]
[1750762895609,0.82714,2416.4,2416.3,0.82715]
[1750762895809,0.82714,2416.4,2416.3,3.27130508]
[1750762896010,2.02659963,2416.4,2416.3,4.62590508]
[1750762897004,1.19945963,2416.4,2416.3,4.62590508]
[1750762897206,2.02659963,2416.4,2416.3,4.62590508]
[1750762897416,1.19945963,2416.4,2416.3,4.62590508]
[1750762897607,0.82712,2416.5,2416.4,0.82714]
[1750762897910,2.02717989,2416.5,2416.4,2.24584]
[1750762898712,1.20005989,2416.5,2416.4,2.24584]
[1750762898916,3.5344,2416.7,2416.4,1.4187]
[1750762899212,4.36144,2416.7,2416.6,3.27122508]
[1750762899416,4.73441411,2416.7,2416.6,3.27122508]
[1750762899716,5.56144411,2416.7,2416.6,4.68992508]
[1750762901017,0.82707,2416.6,2416.5,6.522]
[1750762901220,2.02708411,2416.6,2416.5,6.522]
[1750762901416,0.82713,2416.5,2416.4,0.8271]
[1750762901724,2.02714411,2416.5,2416.4,7.3481]
[1750762903621,2.02714411,2416.5,2416.4,8.6935]
[1750762904213,1.20001411,2416.5,2416.4,8.6935]
[1750762904907,1.20117476,2416.5,2416.4,8.69354]
[1750762905108,1.49448,2416.7,2416.4,9.93423]
[1750762905417,1.20115587,2416.6,2416.5,2.2189]
[1750762906022,2.02822587,2416.6,2416.5,2.2189]
[1750762906215,2.02822587,2416.6,2416.5,8.7399]
[1750762906821,2.02822587,2416.6,2416.5,2.2189]
[1750762907124,2.02822587,2416.6,2416.5,8.7339]
[1750762907925,2.02822587,2416.6,2416.5,7.9068]
[1750762908122,2.02822587,2416.6,2416.5,1.3918]
[1750762908426,2.02822587,2416.6,2416.5,7.9068]
[1750762908621,0.82714,2416.5,2416.3,29.1051]
[1750762908824,0.82714,2416.5,2416.4,6.515]
[1750762909026,2.02849712,2416.5,2416.4,6.515]
[1750762909616,3.26916712,2416.5,2416.2,0.7135]
[1750762909821,0.82721,2416.2,2416.1,6.515]
[1750762910124,2.02856712,2416.2,2416.1,6.515]
[1750762911536,2.02856712,2416.2,2416.1,9.78639508]
[1750762911731,2.02856712,2416.2,2416.1,11.18929508]
[1750762912131,0.82724,2416.1,2416.0,3.2078]
[1750762912329,2.02859712,2416.1,2416.0,12.16695508]
[1750762912830,2.02859712,2416.1,2416.0,13.56985508]
[1750762913133,2.02859712,2416.1,2416.0,14.39712508]
[1750762913325,2.02859712,2416.1,2416.0,7.88212508]
[1750762913524,2.02859712,2416.1,2416.0,14.39712508]
[1750762914525,1.20135712,2416.1,2416.0,14.39712508]
[1750762914722,2.02859712,2416.1,2416.0,13.56985508]
[1750762914926,0.82724,2416.1,2416.0,14.39712508]
[1750762916034,2.02181171,2416.1,2416.0,14.39712508]
[1750762916226,1.19457171,2416.1,2416.0,14.39712508]
[1750762916427,2.02181171,2416.1,2416.0,14.39712508]
[1750762916732,2.02181767,2416.1,2416.0,14.39712508]
[1750762918236,2.02181767,2416.1,2416.0,7.88212508]
[1750762918437,1.19457767,2416.1,2416.0,39.63112508]
[1750762918736,2.02181767,2416.1,2416.0,39.63112508]
[1750762919248,1.19457767,2416.1,2416.0,39.63112508]
[1750762920036,2.02181767,2416.1,2416.0,39.63112508]
[1750762921538,1.19457767,2416.1,2416.0,39.63112508]
[1750762921836,2.02181767,2416.1,2416.0,39.63112508]
[1750762922838,1.19457767,2416.1,2416.0,39.63112508]
[1750762924836,2.02181767,2416.1,2416.0,39.63112508]
[1750762925033,0.82731,2415.9,2415.8,0.7072]
[1750762925438,1.19432528,2415.9,2415.8,3.97869508]
[1750762925635,1.19432528,2415.9,2415.8,4.46995508]
[1750762925836,1.19432528,2415.9,2415.8,5.29729508]
[1750762926535,2.02163528,2415.9,2415.8,5.29729508]
[1750762927238,2.02163528,2415.9,2415.8,25.231]
[1750762927633,0.82734,2415.8,2415.7,32.57436]
[1750762927943,2.02166528,2415.8,2415.7,32.57436]
[1750762928131,2.69886528,2415.8,2415.7,0.82736]
[1750762928331,2.69886528,2415.8,2415.7,32.57536]
[1750762928536,2.69886528,2415.8,2415.7,33.99346]
[1750762929239,0.6772,2415.8,2415.7,33.99346]
[1750762932440,0.82729,2416.0,2415.9,0.82731]
[1750762932742,1.51899,2416.0,2415.9,3.27146508]
[1750762932943,2.71244544,2416.0,2415.9,3.27146508]
[1750762933143,2.71244544,2416.0,2415.9,4.62736508]
[1750762934642,2.71244544,2416.0,2415.9,0.82731]
[1750762934847,0.82738,2415.8,2415.7,32.57533]
[1750762935247,2.02103567,2415.8,2415.7,32.57533]
[1750762936341,2.02103567,2415.8,2415.7,7.34333]
[1750762937142,2.02103567,2415.8,2415.7,11.18758508]
[1750762937954,1.19365567,2415.8,2415.7,11.18758508]
[1750762939254,2.02099567,2415.8,2415.7,11.18758508]
[1750762942352,2.02099567,2415.8,2415.7,7.34333]
[1750762942954,2.02099567,2415.8,2415.7,0.82733]
[1750762944955,2.02099567,2415.8,2415.7,2.15883]
[1750762945256,1.19365567,2415.8,2415.7,2.15883]